[Event "Live Chess"]
[Site "Chess.com"]
[Date "2023.05.21"]
[Round "-"]
[White "Long1968"]
[Black "OleksiyJr1"]
[Result "0-1"]
[WhiteElo "970"]
[BlackElo "973"]
[TimeControl "300"]
[EndTime "2:16:14 PDT"]
[Termination "OleksiyJr1 won on time"]

1. e4 {[%clk 0:04:57.1]} 1... c5 {[%clk 0:04:59.2]} 2. c3 {[%clk 0:04:54.6]}
2... Nc6 {[%clk 0:04:56]} 3. d4 {[%clk 0:04:51.4]} 3... cxd4 {[%clk 0:04:55.9]}
4. cxd4 {[%clk 0:04:49]} 4... e6 {[%clk 0:04:55.5]} 5. e5 {[%clk 0:04:43.7]}
5... d5 {[%clk 0:04:55.4]} 6. exd6 {[%clk 0:04:35.8]} 6... Qxd6 {[%clk
0:04:52.4]} 7. Nf3 {[%clk 0:04:32.2]} 7... e5 {[%clk 0:04:48.9]} 8. Nc3 {[%clk
0:04:25.2]} 8... exd4 {[%clk 0:04:19.4]} 9. Nb5 {[%clk 0:04:21.6]} 9... Qb4+
{[%clk 0:04:16.1]} 10. Bd2 {[%clk 0:04:15.4]} 10... Qxb2 {[%clk 0:04:08.2]} 11.
Nc7+ {[%clk 0:04:05.8]} 11... Kd8 {[%clk 0:04:06.6]} 12. Nxa8 {[%clk 0:04:02.2]}
12... Bb4 {[%clk 0:04:05.6]} 13. Bxb4 {[%clk 0:03:53.6]} 13... Qxb4+ {[%clk
0:04:05.5]} 14. Qd2 {[%clk 0:03:44]} 14... Qxd2+ {[%clk 0:04:02.2]} 15. Kxd2
{[%clk 0:03:37.6]} 15... Nf6 {[%clk 0:04:02.1]} 16. Bd3 {[%clk 0:03:26.3]} 16...
Bg4 {[%clk 0:03:56.5]} 17. Rhe1 {[%clk 0:03:14.5]} 17... Bxf3 {[%clk 0:03:54.9]}
18. gxf3 {[%clk 0:03:10]} 18... Kd7 {[%clk 0:03:53.5]} 19. Bb5 {[%clk
0:03:01.9]} 19... Rxa8 {[%clk 0:03:50.7]} 20. Bxc6+ {[%clk 0:02:57.9]} 20...
bxc6 {[%clk 0:03:49.2]} 21. Rac1 {[%clk 0:02:51.3]} 21... Rc8 {[%clk 0:03:46.5]}
22. Rc4 {[%clk 0:02:47.6]} 22... c5 {[%clk 0:03:45.3]} 23. Rec1 {[%clk
0:02:43.7]} 23... Kd6 {[%clk 0:03:42.5]} 24. Rxd4+ {[%clk 0:02:35.5]} 24... Nd5
{[%clk 0:03:36.2]} 25. Rdc4 {[%clk 0:02:23.3]} 25... Rc6 {[%clk 0:03:18.8]} 26.
Ra4 {[%clk 0:02:13.5]} 26... a6 {[%clk 0:03:14.3]} 27. Rg1 {[%clk 0:01:54.3]}
27... g6 {[%clk 0:03:11.4]} 28. h4 {[%clk 0:01:44.6]} 28... Nb4 {[%clk
0:03:05.5]} 29. h5 {[%clk 0:01:27.1]} 29... Nd5 {[%clk 0:02:54.4]} 30. Rag4
{[%clk 0:01:02]} 30... Nf6 {[%clk 0:02:49.2]} 31. hxg6 {[%clk 0:00:51.9]} 31...
Nxg4 {[%clk 0:02:09.8]} 32. gxh7 {[%clk 0:00:41.4]} 32... Rc8 {[%clk 0:02:08.1]}
33. Rxg4 {[%clk 0:00:32]} 33... Rh8 {[%clk 0:02:05.3]} 34. Rh4 {[%clk
0:00:22.5]} 34... Ke6 {[%clk 0:02:01.7]} 35. Rh6+ {[%clk 0:00:16.8]} 35... Ke7
{[%clk 0:01:58.3]} 36. Kc3 {[%clk 0:00:09.5]} 36... Kf8 {[%clk 0:01:55.1]} 37.
Kc4 {[%clk 0:00:06.8]} 37... Kg7 {[%clk 0:01:54.6]} 38. Rh3 {[%clk 0:00:01.7]}
38... Rxh7 {[%clk 0:01:52.6]} 0-1

[Event "Live Chess"]
[Site "Chess.com"]
[Date "2023.05.21"]
[Round "-"]
[White "chessfiction"]
[Black "AbilifyXL"]
[Result "1-0"]
[WhiteElo "2334"]
[BlackElo "1937"]
[TimeControl "300"]
[EndTime "2:16:26 PDT"]
[Termination "chessfiction won by resignation"]

1. e4 {[%clk 0:04:59.3]} 1... d5 {[%clk 0:04:58.8]} 2. d4 {[%clk 0:04:59.2]}
2... c6 {[%clk 0:04:57.7]} 3. f3 {[%clk 0:04:59.1]} 3... dxe4 {[%clk 0:04:56.2]}
4. Nc3 {[%clk 0:04:59]} 4... exf3 {[%clk 0:04:55.2]} 5. Nxf3 {[%clk 0:04:58.7]}
5... Nf6 {[%clk 0:04:54.3]} 6. Bc4 {[%clk 0:04:58.3]} 6... Bf5 {[%clk
0:04:52.1]} 7. Ne5 {[%clk 0:04:57.5]} 7... e6 {[%clk 0:04:51.1]} 8. O-O {[%clk
0:04:56.8]} 8... Bg6 {[%clk 0:04:50.2]} 9. Be3 {[%clk 0:04:53.6]} 9... Nbd7
{[%clk 0:04:49.2]} 10. Qf3 {[%clk 0:04:52]} 10... Nxe5 {[%clk 0:04:41.3]} 11.
dxe5 {[%clk 0:04:51.9]} 11... Nd5 {[%clk 0:04:40.5]} 12. Rad1 {[%clk 0:04:42.2]}
12... Be7 {[%clk 0:04:36.5]} 13. h4 {[%clk 0:04:11.4]} 13... O-O {[%clk
0:04:30.5]} 14. h5 {[%clk 0:04:10]} 14... Bxc2 {[%clk 0:04:19.7]} 15. Rd2 {[%clk
0:04:09.1]} 15... Bf5 {[%clk 0:04:17.3]} 16. g4 {[%clk 0:04:06]} 16... b5 {[%clk
0:04:06.8]} 17. Bxd5 {[%clk 0:04:01.7]} 17... cxd5 {[%clk 0:04:03.7]} 18. gxf5
{[%clk 0:04:00.4]} 18... exf5 {[%clk 0:04:02]} 19. Nxd5 {[%clk 0:03:59.1]} 19...
Qe8 {[%clk 0:03:58.1]} 20. Nc7 {[%clk 0:03:50.4]} 20... Qc8 {[%clk 0:03:55.1]}
21. Nxa8 {[%clk 0:03:49.1]} 21... Qxa8 {[%clk 0:03:54.2]} 22. Qxa8 {[%clk
0:03:48.1]} 22... Rxa8 {[%clk 0:03:53]} 23. Rd7 {[%clk 0:03:45.8]} 23... Re8
{[%clk 0:03:48.6]} 24. Rxf5 {[%clk 0:03:43.8]} 24... g6 {[%clk 0:03:45.7]} 25.
hxg6 {[%clk 0:03:41.9]} 25... hxg6 {[%clk 0:03:44.4]} 26. Rf3 {[%clk 0:03:39.7]}
1-0

[Event "Live Chess"]
[Site "Chess.com"]
[Date "2023.05.21"]
[Round "-"]
[White "Cimon"]
[Black "FailsGambits"]
[Result "1-0"]
[WhiteElo "1842"]
[BlackElo "1339"]
[TimeControl "300"]
[EndTime "2:16:33 PDT"]
[Termination "Cimon won by resignation"]

1. Nf3 {[%clk 0:04:58.1]} 1... d5 {[%clk 0:04:59]} 2. d4 {[%clk 0:04:56.6]} 2...
e6 {[%clk 0:04:58.2]} 3. c4 {[%clk 0:04:55.2]} 3... Nf6 {[%clk 0:04:56.5]} 4.
Nc3 {[%clk 0:04:53.8]} 4... c5 {[%clk 0:04:52.5]} 5. dxc5 {[%clk 0:04:46.5]}
5... Bxc5 {[%clk 0:04:35.9]} 6. cxd5 {[%clk 0:04:44.4]} 6... Nxd5 {[%clk
0:04:31.7]} 7. g3 {[%clk 0:04:32.3]} 7... Nxc3 {[%clk 0:04:04.6]} 8. Qxd8+
{[%clk 0:04:29.8]} 8... Kxd8 {[%clk 0:03:50.8]} 9. bxc3 {[%clk 0:04:28.6]} 9...
Ke7 {[%clk 0:03:47.1]} 10. Bg2 {[%clk 0:04:20.4]} 10... Nc6 {[%clk 0:03:34.9]}
11. O-O {[%clk 0:04:16]} 11... Rd8 {[%clk 0:03:34.3]} 12. Bf4 {[%clk 0:04:11.4]}
12... Bd6 {[%clk 0:03:27.1]} 13. Be3 {[%clk 0:04:05.8]} 13... Kf8 {[%clk
0:03:25.2]} 14. Rfd1 {[%clk 0:04:00.9]} 14... Be7 {[%clk 0:02:42.4]} 15. Nd4
{[%clk 0:03:38.6]} 15... Nxd4 {[%clk 0:02:34.3]} 16. Bxd4 {[%clk 0:03:21.3]}
16... a5 {[%clk 0:02:18.1]} 17. Rab1 {[%clk 0:03:11.7]} 17... Ra6 {[%clk
0:02:02.2]} 18. Bxb7 {[%clk 0:02:49.6]} 18... Bxb7 {[%clk 0:02:02.1]} 19. Rxb7
{[%clk 0:02:48.2]} 19... Bc5 {[%clk 0:01:43.1]} 20. Rb5 {[%clk 0:02:21.7]} 20...
Bxd4 {[%clk 0:01:41.1]} 21. Rxd4 {[%clk 0:02:17]} 21... Rxd4 {[%clk 0:01:34.4]}
22. cxd4 {[%clk 0:02:15.5]} 22... Rd6 {[%clk 0:01:32.4]} 23. e3 {[%clk
0:02:12.9]} 23... Ra6 {[%clk 0:01:23.2]} 24. Rb7 {[%clk 0:02:11.3]} 24... a4
{[%clk 0:01:11]} 25. a3 {[%clk 0:02:05.7]} 25... g6 {[%clk 0:00:58.7]} 26. Kg2
{[%clk 0:02:03.8]} 26... Kg7 {[%clk 0:00:57.8]} 27. Kf3 {[%clk 0:02:02]} 27...
Kf6 {[%clk 0:00:55.9]} 28. Ke4 {[%clk 0:01:50.1]} 28... Ra5 {[%clk 0:00:54.4]}
29. f4 {[%clk 0:01:41.2]} 29... h5 {[%clk 0:00:46.2]} 30. h3 {[%clk 0:01:38.1]}
30... Kg7 {[%clk 0:00:31.9]} 31. g4 {[%clk 0:01:33.7]} 31... hxg4 {[%clk
0:00:27.7]} 32. hxg4 {[%clk 0:01:32.5]} 1-0

[Event "Live Chess"]
[Site "Chess.com"]
[Date "2023.05.21"]
[Round "-"]
[White "mliszewski"]
[Black "whitedjohn"]
[Result "0-1"]
[WhiteElo "1828"]
[BlackElo "1660"]
[TimeControl "300"]
[EndTime "2:16:33 PDT"]
[Termination "whitedjohn won by resignation"]

1. d4 {[%clk 0:04:58.5]} 1... Nf6 {[%clk 0:04:58.9]} 2. Bg5 {[%clk 0:04:57.2]}
2... Ne4 {[%clk 0:04:57.7]} 3. h4 {[%clk 0:04:56.1]} 3... h6 {[%clk 0:04:56.1]}
4. Bf4 {[%clk 0:04:54.4]} 4... c5 {[%clk 0:04:55.4]} 5. d5 {[%clk 0:04:52.5]}
5... Qa5+ {[%clk 0:04:53.3]} 6. c3 {[%clk 0:04:49.3]} 6... d6 {[%clk 0:04:51.1]}
7. Nd2 {[%clk 0:04:46.3]} 7... Nf6 {[%clk 0:04:46.3]} 8. e3 {[%clk 0:04:43.1]}
8... Bf5 {[%clk 0:04:33.6]} 9. Ngf3 {[%clk 0:04:34.5]} 9... Qc7 {[%clk
0:04:30.6]} 10. Nb3 {[%clk 0:04:31.7]} 10... e5 {[%clk 0:04:16.4]} 11. dxe6
{[%clk 0:04:19.9]} 11... fxe6 {[%clk 0:04:15.1]} 12. Bb5+ {[%clk 0:04:07.8]}
12... Nbd7 {[%clk 0:04:08.3]} 13. O-O {[%clk 0:04:02]} 13... a6 {[%clk 0:04:07]}
14. Bxd7+ {[%clk 0:03:58.7]} 14... Qxd7 {[%clk 0:04:05.3]} 15. Qd2 {[%clk
0:03:52]} 15... Be7 {[%clk 0:03:49.4]} 16. Rad1 {[%clk 0:03:50.4]} 16... Rd8
{[%clk 0:03:45.8]} 17. Qe2 {[%clk 0:03:37.6]} 17... Qb5 {[%clk 0:03:18]} 18.
Qxb5+ {[%clk 0:03:33.2]} 18... axb5 {[%clk 0:03:16.9]} 19. Rfe1 {[%clk 0:03:22]}
19... O-O {[%clk 0:03:14.7]} 20. a3 {[%clk 0:03:04]} 20... Bc2 {[%clk 0:03:11]}
21. Na5 {[%clk 0:02:55.7]} 21... Bxd1 {[%clk 0:03:08.3]} 22. Rxd1 {[%clk
0:02:54.8]} 22... Rd7 {[%clk 0:02:53.4]} 23. b4 {[%clk 0:02:32.9]} 23... c4
{[%clk 0:02:45.8]} 24. Nd4 {[%clk 0:02:22.4]} 24... e5 {[%clk 0:02:35.7]} 25.
Ne6 {[%clk 0:02:21.5]} 25... exf4 {[%clk 0:02:31.2]} 26. Nxf8 {[%clk 0:02:19.6]}
26... Kxf8 {[%clk 0:02:30.1]} 27. exf4 {[%clk 0:02:19.3]} 27... d5 {[%clk
0:02:20.2]} 28. f3 {[%clk 0:02:15.2]} 28... Nh5 {[%clk 0:02:14.5]} 29. f5 {[%clk
0:02:01.5]} 29... Bxh4 {[%clk 0:02:08.4]} 30. Rd4 {[%clk 0:01:55.4]} 30... Bd8
{[%clk 0:02:05.5]} 31. g4 {[%clk 0:01:46.8]} 31... Nf6 {[%clk 0:02:01.9]} 32.
Kg2 {[%clk 0:01:43.4]} 32... Bxa5 {[%clk 0:02:00.2]} 33. bxa5 {[%clk 0:01:42.3]}
33... Ke7 {[%clk 0:01:58.5]} 34. Kg3 {[%clk 0:01:41.2]} 34... Kd6 {[%clk
0:01:56.4]} 35. f4 {[%clk 0:01:38.7]} 35... Rd8 {[%clk 0:01:54.3]} 36. g5 {[%clk
0:01:37.8]} 36... Ne4+ {[%clk 0:01:49.9]} 37. Kg4 {[%clk 0:01:35.8]} 37... Nxc3
{[%clk 0:01:47.1]} 38. f6 {[%clk 0:01:30.9]} 38... gxf6 {[%clk 0:01:44.3]} 39.
g6 {[%clk 0:01:28.8]} 39... Rg8 {[%clk 0:01:41.9]} 40. f5 {[%clk 0:01:27.9]}
40... Ne4 {[%clk 0:01:39.1]} 41. Kh5 {[%clk 0:01:26.8]} 41... Ng3+ {[%clk
0:01:35.1]} 42. Kxh6 {[%clk 0:01:26.1]} 42... Nxf5+ {[%clk 0:01:33.9]} 43. Kh7
{[%clk 0:01:25]} 43... Rxg6 {[%clk 0:01:32.6]} 44. Kxg6 {[%clk 0:01:23.9]} 44...
Nxd4 {[%clk 0:01:31.3]} 45. Kxf6 {[%clk 0:01:23]} 45... Nc2 {[%clk 0:01:29.2]}
0-1

[Event "Live Chess"]
[Site "Chess.com"]
[Date "2023.05.21"]
[Round "-"]
[White "Leonid_Starozhilov"]
[Black "ExIsambard"]
[Result "1-0"]
[WhiteElo "2632"]
[BlackElo "1900"]
[TimeControl "300"]
[EndTime "2:16:42 PDT"]
[Termination "Leonid_Starozhilov won on time"]

1. e4 {[%clk 0:04:57.8]} 1... Nc6 {[%clk 0:04:58.6]} 2. Bb5 {[%clk 0:04:55.9]}
2... d5 {[%clk 0:04:51.9]} 3. Bxc6+ {[%clk 0:04:53.6]} 3... bxc6 {[%clk
0:04:50.6]} 4. Qe2 {[%clk 0:04:53]} 4... e6 {[%clk 0:04:40.7]} 5. d3 {[%clk
0:04:51.7]} 5... Nf6 {[%clk 0:04:38.1]} 6. Nf3 {[%clk 0:04:50.5]} 6... Ba6
{[%clk 0:04:29.9]} 7. Nbd2 {[%clk 0:04:47.9]} 7... Bb4 {[%clk 0:04:24.7]} 8. O-O
{[%clk 0:04:34.2]} 8... Bxd2 {[%clk 0:04:21.6]} 9. Nxd2 {[%clk 0:04:31]} 9...
dxe4 {[%clk 0:04:15.9]} 10. Nxe4 {[%clk 0:04:29.8]} 10... Qd4 {[%clk 0:03:46.9]}
11. Nc3 {[%clk 0:04:16.6]} 11... O-O {[%clk 0:03:41.1]} 12. Be3 {[%clk
0:04:07.2]} 12... Qh4 {[%clk 0:03:38.6]} 13. Qf3 {[%clk 0:03:59]} 13... Ng4
{[%clk 0:03:08.8]} 14. Bf4 {[%clk 0:03:46.8]} 14... c5 {[%clk 0:02:54]} 15. h3
{[%clk 0:03:26.9]} 15... Nf6 {[%clk 0:02:46.5]} 16. b3 {[%clk 0:03:24.1]} 16...
Rab8 {[%clk 0:02:45.1]} 17. Bxc7 {[%clk 0:03:20.7]} 17... Bb7 {[%clk 0:02:36.8]}
18. Qg3 {[%clk 0:03:18.5]} 18... Qxg3 {[%clk 0:02:28.8]} 19. Bxg3 {[%clk
0:03:17.6]} 19... Rbc8 {[%clk 0:02:24.7]} 20. Rfe1 {[%clk 0:03:10.7]} 20... h6
{[%clk 0:02:19.8]} 21. Re2 {[%clk 0:03:02.2]} 21... Rfd8 {[%clk 0:02:05.4]} 22.
Rae1 {[%clk 0:02:51.5]} 22... a6 {[%clk 0:01:48.4]} 23. Na4 {[%clk 0:02:41.5]}
23... Nd5 {[%clk 0:01:42.8]} 24. a3 {[%clk 0:02:35.8]} 24... Bc6 {[%clk
0:01:35.6]} 25. Nb2 {[%clk 0:02:26.8]} 25... Ba8 {[%clk 0:00:55.4]} 26. Nc4
{[%clk 0:02:23.6]} 26... Nc3 {[%clk 0:00:48.8]} 27. Re5 {[%clk 0:02:04.2]} 27...
Nb5 {[%clk 0:00:46.7]} 28. f3 {[%clk 0:01:46.4]} 28... Nd4 {[%clk 0:00:41.3]}
29. Rc1 {[%clk 0:01:44.4]} 29... f6 {[%clk 0:00:36.5]} 30. Ree1 {[%clk
0:01:42.5]} 30... e5 {[%clk 0:00:33.4]} 31. f4 {[%clk 0:01:41.3]} 31... exf4
{[%clk 0:00:15.6]} 32. Bxf4 {[%clk 0:01:36.4]} 32... Bd5 {[%clk 0:00:15.2]} 33.
Nb6 {[%clk 0:01:33.9]} 33... Rc6 {[%clk 0:00:14.2]} 34. Nxd5 {[%clk 0:01:30.1]}
34... Rxd5 {[%clk 0:00:12.6]} 35. Be3 {[%clk 0:01:28.9]} 35... Nf5 {[%clk
0:00:10.4]} 36. Bf2 {[%clk 0:01:26.1]} 36... Kf7 {[%clk 0:00:08.4]} 37. Re4
{[%clk 0:01:24.8]} 37... Re6 {[%clk 0:00:06.5]} 38. Rxe6 {[%clk 0:01:21.9]}
38... Kxe6 {[%clk 0:00:05.9]} 39. Re1+ {[%clk 0:01:21.5]} 39... Kd6 {[%clk
0:00:05.3]} 40. Re4 {[%clk 0:01:19.4]} 40... Nd4 {[%clk 0:00:03.3]} 41. Bxd4
{[%clk 0:01:17.4]} 41... Rxd4 {[%clk 0:00:02.5]} 42. Kf2 {[%clk 0:01:15.4]}
42... Rxe4 {[%clk 0:00:01.6]} 43. dxe4 {[%clk 0:01:14.5]} 43... Ke5 {[%clk
0:00:01.5]} 44. Ke3 {[%clk 0:01:14]} 44... f5 {[%clk 0:00:00.9]} 45. exf5 {[%clk
0:01:13.1]} 45... Kxf5 {[%clk 0:00:00.8]} 46. c3 {[%clk 0:01:12.5]} 46... Ke5
{[%clk 0:00:00.3]} 47. b4 {[%clk 0:01:11.4]} 1-0

[Event "Live Chess"]
[Site "Chess.com"]
[Date "2023.05.21"]
[Round "-"]
[White "elizaveta_frundina"]
[Black "Delacorta"]
[Result "1-0"]
[WhiteElo "1571"]
[BlackElo "1408"]
[TimeControl "300"]
[EndTime "2:16:46 PDT"]
[Termination "elizaveta_frundina won by resignation"]

1. e4 {[%clk 0:04:54.3]} 1... e6 {[%clk 0:04:58.9]} 2. d4 {[%clk 0:04:53]} 2...
d5 {[%clk 0:04:57.8]} 3. Bd3 {[%clk 0:04:50.3]} 3... dxe4 {[%clk 0:04:49.8]} 4.
Bxe4 {[%clk 0:04:48.9]} 4... Nf6 {[%clk 0:04:48.6]} 5. Bg5 {[%clk 0:04:46.8]}
5... Be7 {[%clk 0:04:44.8]} 6. Bd3 {[%clk 0:04:45.7]} 6... Nbd7 {[%clk
0:04:30.3]} 7. Nf3 {[%clk 0:04:40.9]} 7... b6 {[%clk 0:04:22.6]} 8. O-O {[%clk
0:04:29.1]} 8... Bb7 {[%clk 0:04:21.2]} 9. Nc3 {[%clk 0:04:26.9]} 9... h6 {[%clk
0:04:09.1]} 10. Bxf6 {[%clk 0:04:23.6]} 10... Nxf6 {[%clk 0:04:03.7]} 11. h3
{[%clk 0:04:12.2]} 11... O-O {[%clk 0:03:38.9]} 12. Re1 {[%clk 0:04:04.3]} 12...
Re8 {[%clk 0:03:33.1]} 13. Ne4 {[%clk 0:03:59]} 13... Nxe4 {[%clk 0:03:10]} 14.
Bxe4 {[%clk 0:03:57.3]} 14... Bxe4 {[%clk 0:03:08.8]} 15. Rxe4 {[%clk
0:03:55.6]} 15... c5 {[%clk 0:02:58]} 16. Ne5 {[%clk 0:03:46.5]} 16... Bf6
{[%clk 0:02:34.9]} 17. Qh5 {[%clk 0:03:28.4]} 17... Qc7 {[%clk 0:02:01.1]} 18.
Ng4 {[%clk 0:02:53]} 18... Bg5 {[%clk 0:01:38.2]} 19. h4 {[%clk 0:02:32.1]}
19... f5 {[%clk 0:01:32.7]} 20. hxg5 {[%clk 0:02:10.9]} 20... fxe4 {[%clk
0:01:10.6]} 21. gxh6 {[%clk 0:02:05]} 21... Qf7 {[%clk 0:00:49.2]} 22. h7+
{[%clk 0:01:51.9]} 1-0

[Event "Live Chess"]
[Site "Chess.com"]
[Date "2023.05.21"]
[Round "-"]
[White "Duke_of_Bebington"]
[Black "Biranidun"]
[Result "0-1"]
[WhiteElo "1587"]
[BlackElo "2551"]
[TimeControl "300"]
[EndTime "2:17:26 PDT"]
[Termination "Biranidun won by resignation"]

1. e4 {[%clk 0:04:57.9]} 1... c5 {[%clk 0:04:59]} 2. c3 {[%clk 0:04:56.5]} 2...
Nf6 {[%clk 0:04:57.7]} 3. e5 {[%clk 0:04:54.2]} 3... Nd5 {[%clk 0:04:57.1]} 4.
Na3 {[%clk 0:04:48.8]} 4... Nc6 {[%clk 0:04:55.6]} 5. d4 {[%clk 0:04:44.2]} 5...
cxd4 {[%clk 0:04:55.5]} 6. cxd4 {[%clk 0:04:43.6]} 6... d6 {[%clk 0:04:54.6]} 7.
Nf3 {[%clk 0:04:33.6]} 7... Bg4 {[%clk 0:04:52.5]} 8. Bb5 {[%clk 0:04:27.1]}
8... e6 {[%clk 0:04:47.1]} 9. h3 {[%clk 0:04:19.3]} 9... Bxf3 {[%clk 0:04:40.8]}
10. Qxf3 {[%clk 0:04:17.2]} 10... dxe5 {[%clk 0:04:40]} 11. dxe5 {[%clk
0:04:14.1]} 11... Bb4+ {[%clk 0:04:36.8]} 12. Kf1 {[%clk 0:04:11.9]} 12... O-O
{[%clk 0:04:34.7]} 13. Bxc6 {[%clk 0:04:09.6]} 13... bxc6 {[%clk 0:04:34.2]} 14.
Nc4 {[%clk 0:04:08.3]} 14... f6 {[%clk 0:04:30.1]} 15. Qg3 {[%clk 0:03:54.2]}
15... fxe5 {[%clk 0:04:27.5]} 16. Nxe5 {[%clk 0:03:49.6]} 16... Bd6 {[%clk
0:04:18.4]} 17. Qc3 {[%clk 0:03:44.6]} 17... Bxe5 {[%clk 0:04:10.9]} 18. Qxe5
{[%clk 0:03:42.9]} 18... Qb6 {[%clk 0:04:10.6]} 19. Be3 {[%clk 0:03:36.3]} 19...
Nxe3+ {[%clk 0:04:09.2]} 20. Qxe3 {[%clk 0:03:35.4]} 20... Qxe3 {[%clk
0:04:07.9]} 0-1

[Event "Live Chess"]
[Site "Chess.com"]
[Date "2023.05.21"]
[Round "-"]
[White "gmnorfolk"]
[Black "JoeyCage"]
[Result "1-0"]
[WhiteElo "2128"]
[BlackElo "2302"]
[TimeControl "300"]
[EndTime "2:17:35 PDT"]
[Termination "gmnorfolk won by checkmate"]

1. d4 {[%clk 0:04:58.3]} 1... g6 {[%clk 0:04:58.7]} 2. e4 {[%clk 0:04:53.9]}
2... Bg7 {[%clk 0:04:57.7]} 3. Nc3 {[%clk 0:04:52.6]} 3... d6 {[%clk 0:04:56.7]}
4. Be3 {[%clk 0:04:52.2]} 4... Nc6 {[%clk 0:04:54.6]} 5. Nge2 {[%clk 0:04:48.2]}
5... e5 {[%clk 0:04:53.7]} 6. Qd2 {[%clk 0:04:43.6]} 6... f5 {[%clk 0:04:50.9]}
7. f3 {[%clk 0:04:35.4]} 7... Nf6 {[%clk 0:04:49.2]} 8. exf5 {[%clk 0:04:21.3]}
8... Bxf5 {[%clk 0:04:46.3]} 9. O-O-O {[%clk 0:04:18.9]} 9... O-O {[%clk
0:04:44.1]} 10. g4 {[%clk 0:04:12.5]} 10... Bd7 {[%clk 0:04:38.6]} 11. d5 {[%clk
0:04:03.3]} 11... Ne7 {[%clk 0:04:35.1]} 12. Ng3 {[%clk 0:04:01.2]} 12... Bxg4
{[%clk 0:04:24.5]} 13. fxg4 {[%clk 0:03:57.1]} 13... Nxg4 {[%clk 0:04:23.4]} 14.
Bh3 {[%clk 0:03:50.4]} 14... Nxe3 {[%clk 0:04:14.8]} 15. Be6+ {[%clk 0:03:45.1]}
15... Kh8 {[%clk 0:04:13.2]} 16. Qxe3 {[%clk 0:03:43.6]} 16... Nf5 {[%clk
0:04:10.6]} 17. Nxf5 {[%clk 0:03:30.7]} 17... gxf5 {[%clk 0:04:09.2]} 18. Qh3
{[%clk 0:03:28.3]} 18... Qf6 {[%clk 0:03:53.1]} 19. Rdf1 {[%clk 0:03:23.2]}
19... f4 {[%clk 0:03:48.5]} 20. Ne4 {[%clk 0:03:21.3]} 20... Qh6 {[%clk
0:03:46.9]} 21. Qxh6 {[%clk 0:03:17.7]} 21... Bxh6 {[%clk 0:03:45.9]} 22. Kd1
{[%clk 0:03:11.9]} 22... Rad8 {[%clk 0:03:41.1]} 23. Ke2 {[%clk 0:03:07.8]}
23... Rde8 {[%clk 0:03:34.1]} 24. c4 {[%clk 0:03:00.2]} 24... b6 {[%clk
0:03:31.8]} 25. Rhg1 {[%clk 0:02:56.9]} 25... Re7 {[%clk 0:03:30.5]} 26. Rf3
{[%clk 0:02:55.3]} 26... Rg7 {[%clk 0:03:29.3]} 27. Rxg7 {[%clk 0:02:48.7]}
27... Bxg7 {[%clk 0:03:27.7]} 28. Rh3 {[%clk 0:02:44.4]} 28... h6 {[%clk
0:03:18]} 29. Kf3 {[%clk 0:02:41.1]} 29... Kh7 {[%clk 0:03:16.4]} 30. Ng5+
{[%clk 0:02:32.5]} 30... Kg6 {[%clk 0:03:15.1]} 31. Ne4 {[%clk 0:02:26.6]} 31...
Bf6 {[%clk 0:02:53.7]} 32. Kg4 {[%clk 0:02:14.6]} 32... Bd8 {[%clk 0:02:44.4]}
33. Rh5 {[%clk 0:02:08.7]} 33... Kg7 {[%clk 0:02:31]} 34. Rf5 {[%clk 0:02:04.4]}
34... Rxf5 {[%clk 0:02:27.3]} 35. Bxf5 {[%clk 0:02:00.6]} 35... Be7 {[%clk
0:02:23.3]} 36. b4 {[%clk 0:01:51.1]} 36... a5 {[%clk 0:02:21.1]} 37. bxa5
{[%clk 0:01:45.1]} 37... bxa5 {[%clk 0:02:19.7]} 38. a4 {[%clk 0:01:44.5]} 38...
Kf7 {[%clk 0:02:13.5]} 39. Kh5 {[%clk 0:01:37.2]} 39... Kg7 {[%clk 0:02:12.1]}
40. Bg4 {[%clk 0:01:33]} 40... Bd8 {[%clk 0:02:08.5]} 41. Bf3 {[%clk 0:01:30.1]}
41... Be7 {[%clk 0:02:06.5]} 42. Nd2 {[%clk 0:01:24.3]} 42... Bg5 {[%clk
0:01:59.4]} 43. Nb3 {[%clk 0:01:18.2]} 43... Kf6 {[%clk 0:01:54.1]} 44. Nxa5
{[%clk 0:01:15.2]} 44... Kf5 {[%clk 0:01:52.2]} 45. h4 {[%clk 0:01:01.8]} 45...
Bd8 {[%clk 0:01:49.4]} 46. Nc6 {[%clk 0:00:58.1]} 46... Bf6 {[%clk 0:01:48.1]}
47. Bg4+ {[%clk 0:00:47.3]} 47... Ke4 {[%clk 0:01:46.8]} 48. a5 {[%clk
0:00:46.2]} 48... f3 {[%clk 0:01:45.6]} 49. a6 {[%clk 0:00:42.5]} 49... Ke3
{[%clk 0:01:43.8]} 50. Bxf3 {[%clk 0:00:39.8]} 50... Kxf3 {[%clk 0:01:42.8]} 51.
a7 {[%clk 0:00:39.1]} 51... e4 {[%clk 0:01:42.4]} 52. a8=Q {[%clk 0:00:38.6]}
52... e3 {[%clk 0:01:41.5]} 53. Qf8 {[%clk 0:00:37.2]} 53... e2 {[%clk
0:01:40.2]} 54. Qxf6+ {[%clk 0:00:36]} 54... Ke3 {[%clk 0:01:40.1]} 55. Qe6+
{[%clk 0:00:35.2]} 55... Kd2 {[%clk 0:01:40]} 56. Qxe2+ {[%clk 0:00:33.9]} 56...
Kxe2 {[%clk 0:01:39.2]} 57. Kxh6 {[%clk 0:00:33]} 57... Kd3 {[%clk 0:01:39.1]}
58. Kg6 {[%clk 0:00:32.1]} 58... Kxc4 {[%clk 0:01:39]} 59. Ne7 {[%clk
0:00:31.3]} 59... Kd4 {[%clk 0:01:37.1]} 60. h5 {[%clk 0:00:29.8]} 60... Ke5
{[%clk 0:01:37]} 61. h6 {[%clk 0:00:28.5]} 61... c5 {[%clk 0:01:36.9]} 62. dxc6
{[%clk 0:00:27]} 62... Ke6 {[%clk 0:01:36.3]} 63. h7 {[%clk 0:00:24.6]} 63...
Kxe7 {[%clk 0:01:35.3]} 64. Kf5 {[%clk 0:00:23.6]} 64... Kd8 {[%clk 0:01:33.7]}
65. Ke6 {[%clk 0:00:22.2]} 65... Kc7 {[%clk 0:01:33.6]} 66. Kd5 {[%clk
0:00:21.7]} 66... Kb6 {[%clk 0:00:40.5]} 67. h8=Q {[%clk 0:00:18.3]} 67... Kc7
{[%clk 0:00:12.6]} 68. Qg7+ {[%clk 0:00:16.7]} 68... Kb6 {[%clk 0:00:11.5]} 69.
Qb7+ {[%clk 0:00:15.8]} 69... Ka5 {[%clk 0:00:10.4]} 70. Kc4 {[%clk 0:00:15]}
70... d5+ {[%clk 0:00:09.2]} 71. Kc5 {[%clk 0:00:14.2]} 71... d4 {[%clk
0:00:06.5]} 72. Qa8# {[%clk 0:00:12.3]} 1-0

[Event "Live Chess"]
[Site "Chess.com"]
[Date "2023.05.21"]
[Round "-"]
[White "OleksiyJr1"]
[Black "chessfiction"]
[Result "0-1"]
[WhiteElo "973"]
[BlackElo "2334"]
[TimeControl "300"]
[EndTime "2:17:39 PDT"]
[Termination "chessfiction won by resignation"]

1. e4 {[%clk 0:04:51.4]} 1... d5 {[%clk 0:04:57.2]} 2. exd5 {[%clk 0:04:49.6]}
2... c6 {[%clk 0:04:56]} 3. Nc3 {[%clk 0:04:49.5]} 3... Nf6 {[%clk 0:04:54.4]}
4. dxc6 {[%clk 0:04:48.2]} 4... e5 {[%clk 0:04:52.6]} 5. cxb7 {[%clk 0:04:46.6]}
5... Bxb7 {[%clk 0:04:52.3]} 6. Nf3 {[%clk 0:04:45.2]} 6... Bc5 {[%clk
0:04:51.4]} 7. d3 {[%clk 0:04:44.4]} 7... Qb6 {[%clk 0:04:50]} 8. Qe2 {[%clk
0:04:39.8]} 8... O-O {[%clk 0:04:48.4]} 9. Be3 {[%clk 0:04:33.5]} 9... Qxb2
{[%clk 0:04:46.4]} 10. Bxc5 {[%clk 0:04:30.3]} 10... Qxc3+ {[%clk 0:04:44.6]}
11. Nd2 {[%clk 0:04:27.1]} 11... Qxa1+ {[%clk 0:04:43.5]} 12. Qd1 {[%clk
0:04:24.9]} 12... Qxd1+ {[%clk 0:04:42.2]} 13. Kxd1 {[%clk 0:04:23.9]} 13... Rc8
{[%clk 0:04:41.6]} 14. Bd6 {[%clk 0:04:22.5]} 14... Nc6 {[%clk 0:04:40.7]} 15.
Be7 {[%clk 0:04:20.5]} 15... Nxe7 {[%clk 0:04:39.4]} 0-1